Cogmind - Beta 13 @@@ ROGUE MODE // 2024.04.09 @ 16:58:45 Player: AntinDisguise Result: Destroyed by Y-45 Defender with Heavy Assault Rifle Performance ------------- Evolutions (1) 500 Regions Visited (2) 400 Robots Destroyed (31) 155 Value Destroyed (683) 683 Prototype IDs (1) 20 Alien Tech Used (0) 0 Bonus (27) 27 TOTAL SCORE: 1785 Bonus ------- High Alert Combat Kills 27 Cogmind --------- Core Integrity 0/400 Matter 3/300 Energy 250/250 System Corruption 0% Temperature Cool (6) Movement Treading (480) Ox4 Location -9/Materials Parts ------- > --- POWER (1) -------- Ion Engine > --- PROPULSION (4) --- Light Treads > --- UTILITY (2) ------ Huge Storage Unit Improved Targeting Computer > --- WEAPON (2) ------- Mini Grenade Launcher > --- INVENTORY (25) --- Light Treads ECM Suite Improved Assault Rifle Mini Grenade Launcher Mini Grenade Launcher Peak State ------------ > --- POWER ------------ Ion Engine > --- PROPULSION ------- Improved Treads Improved Treads Improved Treads Improved Treads > --- UTILITY ---------- Huge Storage Unit Improved Targeting Computer > --- WEAPON ----------- Mini Grenade Launcher Mini Grenade Launcher > --- INVENTORY -------- Ion Engine Light Treads Light Treads ECM Suite Improved Assault Rifle Mini Grenade Launcher Mini Grenade Launcher [Rating: 17] Favorites ----------- Power Ion Engine Engine Ion Engine Propulsion Improved Treads Treads Improved Treads Leg Aluminum Leg Utility ECM Suite Device ECM Suite Storage Small Storage Unit Processor Improved Targeting Computer Weapon Mini Grenade Launcher Energy Gun Medium Laser Ballistic Gun Assault Rifle Ballistic Cannon Light Cannon Launcher Mini Grenade Launcher Build | -11 -10 -9 ------- Run | Yrd Mat Mat Slots Evolved 2 | . . 2 Power . | . . . Propulsion 2 | . . 2 Utility . | . . . Weapon . | . . . Parts Attached 29 | 6 13 10 Power 3 | 1 1 1 Engine 3 | 1 1 1 Core . | . . . Reactor . | . . . Propulsion 10 | 2 3 5 Treads 7 | . 2 5 Leg 3 | 2 1 . Wheel . | . . . Hover . | . . . Flight . | . . . Utility 8 | 1 5 2 Device 2 | . 2 . Storage 5 | 1 3 1 Processor 1 | . . 1 Hackware . | . . . Protection . | . . . Artifact . | . . . Weapon 8 | 2 4 2 Energy Gun 1 | 1 . . Energy Cannon . | . . . Ballistic Gun 2 | 1 . 1 Ballistic Cannon 1 | . 1 . Launcher 4 | . 3 1 Special Weapon . | . . . Impact Weapon . | . . . Slashing Weapon . | . . . Piercing Weapon . | . . . Special Melee Weapon . | . . . Unidentified Prototypes 1 | . . 1 Parts Lost 8 | . 2 6 Power 1 | . . 1 Propulsion 5 | . 1 4 Utility 1 | . 1 . Weapon 1 | . . 1 Highest Loss Streak 3 | . 1 3 To Critical Strikes . | . . . Average Slot Usage (%) 96 | . 96 95 Engine 12 | . 14 10 Treads 21 | . 8 40 Leg 10 | . 18 . Device 10 | . 12 6 Storage 12 | . 14 11 Processor 1 | . . 4 Energy Gun 2 | . 4 . Ballistic Gun 1 | . 2 . Launcher 20 | . 19 21 Naked Turns . | . . . Heaviest Build 89 | 14 19 89 Greatest Support 92 | 20 40 92 Greatest Overweight (x) 4 | 4 1 4 Average Overweight (x) . | . . . Largest Inventory Capacity 25 | 8 25 25 Average Capacity 14 | 7 8 24 Most Carried 8 | 5 8 7 Average Carried 5 | 3 6 5 Final Capacity 25 | 8 10 25 Final Carried 8 | 3 8 5 Class Distribution -------------------- 100% | Mutant Dominant Class ---------------- Mutant | -10/Materials Mutant | -9/Materials Resources | -11 -10 -9 ----------- Run | Yrd Mat Mat Matter Collected 551 | 255 279 17 Remotely . | . . . Salvage Created 458 | . 369 89 Parts 44 | . 35 9 Haulers Intercepted 2 | . 2 . Recyclers Shooed 1 | . . 1 Parts Field Recycled . | . . . Retrieved Matter . | . . . Parts Self-Destructed . | . . . Prevented . | . . . Kills | -11 -10 -9 ------- Run | Yrd Mat Mat Combat Hostiles Destroyed 21 | . 14 7 AOE 21 | . 14 7 Classes Destroyed 7 | . 7 . Worker 3 | . 3 . Builder 1 | . 1 . Hauler 2 | . 2 . Mechanic 1 | . 1 . Watcher 3 | . 2 1 Swarmer 10 | . 6 4 Grunt 11 | . 8 3 Best Kill Streak 7 | . 7 5 Combat Bots Only 6 | . 6 4 Max Kills in Single Turn 3 | . 3 3 Gunslinging . | . . . Exploded 3 | . 3 3 Melee . | . . . Uniques/NPCs Destroyed . | . . . Combat | -11 -10 -9 -------- Run | Yrd Mat Mat Hostile Shots Fired 186 | . 45 141 Missed 57 | . 17 40 Damage Taken 1945 | . 483 1462 Core 559 | . 157 402 Absorbed by Shields . | . . . Core Remaining (%) 68 | 100 37 . Volleys Fired 26 | . 19 7 Largest 2 | . 2 2 Hottest 80 | . 80 60 Shots Fired 50 | . 38 12 Gun 13 | . 13 . Cannon 1 | . 1 . Launcher 36 | . 24 12 Special . | . . . Kinetic 4 | . 4 . Thermal 10 | . 10 . Explosive 36 | . 24 12 Electromagnetic . | . . . Robot Hit Streak 11 | . 11 2 Robot Miss Streak 5 | . 5 1 Penetration Max . | . . . Secondary Targets . | . . . Shots Hit Robots 22 | . 18 4 Core Hits 42 | . 30 12 Critical Kills . | . . . Critical Parts Destroyed . | . . . Critical Strikes 2 | . 2 . Burn 2 | . 2 . Melee Attacks . | . . . Impact . | . . . Slashing . | . . . Piercing . | . . . Sneak Attacks . | . . . Combat Hostiles . | . . . Follow-up Attacks . | . . . Damage Inflicted 2134 | . 1684 450 Guns 84 | . 84 . Cannons . | . . . Explosions 2050 | . 1600 450 Melee . | . . . Ramming . | . . . Kinetic 10 | . 10 . Thermal 126 | . 126 . Explosive 1962 | . 1512 450 Electromagnetic 36 | . 36 . Impact . | . . . Slashing . | . . . Piercing . | . . . Highest Corruption 3 | . 3 . Average Corruption 2 | . 2 . Corruption Purged . | . . . Corruption Blocked . | . . . Effects 14 | . 14 . Message Errors 4 | . 4 . Matter Fused 4 | . 4 . Heat Flow Errors 3 | . 3 . Energy Discharges 3 | . 3 . Overload Shots . | . . . Overflow Damage 99 | . 77 22 Projectiles . | . . . Explosions 99 | . 77 22 Melee . | . . . Knockbacks . | . . . Impact . | . . . Kinetic . | . . . Secondary . | . . . Self-Inflicted Damage 267 | . 201 66 Shots 10 | . 7 3 Rammed . | . . . Targets Rammed . | . . . Kicked . | . . . Crushed . | . . . Highest Temperature 237 | . 237 28 Average Temperature 69 | . 79 7 Received Heat Transfer 822 | . 138 684 Siege Activations . | . . . Robots Corrupted . | . . . Combat Hostiles . | . . . Parts Fried . | . . . Impact Corruptions . | . . . Robots Melted . | . . . Combat Hostiles . | . . . Parts Melted . | . . . Heat Transferred 420 | . 420 . Parts Sabotaged . | . . . Parts Stolen . | . . . Parts Stripped . | . . . Power Chain Reactions . | . . . Alert | -11 -10 -9 ------- Run | Yrd Mat Mat Peak Influence 484 | . 450 484 Initial 189 | . . 189 Average 270 | . 241 350 Maximum Alert Level 2 | . 2 2 Low Security (%) 31 | 100 42 5 Level 1 39 | . 32 55 Level 2 28 | . 24 38 Level 3 . | . . . Level 4 . | . . . Level 5 . | . . . High Security . | . . . Max Security . | . . . Squads Dispatched 4 | . 3 1 Investigation 2 | . 1 1 Extermination . | . . . Reinforcement 2 | . 2 . Assault . | . . . Garrison . | . . . Intercept . | . . . Searches Triggered . | . . . Construction Impeded . | . . . Haulers Reinforced . | . . . Active Scanning Responses . | . . . Cargo Convoy Interrupts . | . . . Stealth | -11 -10 -9 --------- Run | Yrd Mat Mat Distress Signals 2 | . 1 1 Communications Jammed . | . . . Distress Signals . | . . . Times Spotted 30 | . 19 11 Peak Tracking Total 5 | . 4 5 Tactical Retreats 3 | . 1 2 Traps | -11 -10 -9 ------- Run | Yrd Mat Mat Traps Triggered 3 | . 3 . Indirectly . | . . . Trap Hack Attempts . | . . . Triggered . | . . . Disarmed . | . . . Reprogrammed . | . . . Reused . | . . . Traps Extracted . | . . . Installed . | . . . Triggered . | . . . Machines | -11 -10 -9 ---------- Run | Yrd Mat Mat Machines Disabled 11 | . 9 2 Max in Single Turn 4 | . 4 1 Machines Repaired . | . . . Machines Dismantled . | . . . Machines Sabotaged . | . . . Overloaded Fab Kills . | . . . Hacking | -11 -10 -9 --------- Run | Yrd Mat Mat Machines Accessed 1 | . . 1 Terminals 1 | . . 1 Fabricators . | . . . Repair Stations . | . . . Recycling Units . | . . . Scanalyzers . | . . . Garrison Access . | . . . Total Hacks 4 | . . 4 Successful 2 | . . 2 Failed 2 | . . 2 Catastrophic . | . . . Database Lockouts . | . . . Manual . | . . . Terminals 4 | . . 4 Fabricators . | . . . Repair Stations . | . . . Recycling Units . | . . . Scanalyzers . | . . . Garrison Access . | . . . Terminal Hacks 2 | . . 2 Emergency Access Points 1 | . . 1 Maintenance Status 1 | . . 1 Fabricator Hacks . | . . . Repair Station Hacks . | . . . Recycling Unit Hacks . | . . . Scanalyzer . | . . . Garrison Access Hacks . | . . . Unauthorized Hacks . | . . . Terminals . | . . . Fabricators . | . . . Repair Stations . | . . . Recycling Units . | . . . Scanalyzers . | . . . Garrison Access . | . . . Data Cores Recovered . | . . . Used . | . . . Hacking Detections 1 | . . 1 Full Trace Events 1 | . . 1 Feedback Events . | . . . Feedback Blocked . | . . . Robot Schematics Acquired . | . . . Robots Built . | . . . Authchips . | . . . Time . | . . . Total Robot Build Rating . | . . . Part Schematics Acquired . | . . . Parts Built . | . . . Authchips . | . . . Time . | . . . Total Part Build Rating . | . . . Parts Repaired . | . . . Time . | . . . Parts Recycled . | . . . Recycled Matter . | . . . Retrieved Matter . | . . . Retrieved Components . | . . . Parts Scanalyzed . | . . . Part Schematics Acquired . | . . . Parts Damaged . | . . . Bothacking | -11 -10 -9 ------------ Run | Yrd Mat Mat Used RIF Installer . | . . . Robots Hacked . | . . . Non-combat . | . . . Combat . | . . . Robot Hacks Applied . | . . . Relay Couplers Released . | . . . Fabnet Peak Effective % . | . . . Robots Rewired . | . . . Allies Hacked . | . . . Hacks Repelled . | . . . Allies | -11 -10 -9 -------- Run | Yrd Mat Mat Total Allies . | . . . Largest Group . | . . . Highest-Rated Group . | . . . Highest-Rated Ally . | . . . Total Orders . | . . . Ally Attacks . | . . . Total Damage . | . . . Kills . | . . . Allies Corrupted . | . . . Allies Melted . | . . . Intel | -11 -10 -9 ------- Run | Yrd Mat Mat Robot Analysis Total . | . . . Derelict Logs Recovered . | . . . Drone Launches . | . . . Drone Recoveries . | . . . Exploration | -11 -10 -9 ------------- Run | Yrd Mat Mat Turns Passed 1351 | 68 776 507 Spaces Moved 744 | 43 454 247 Core 23 | 23 . . Treads 387 | . 140 247 Legs 334 | 20 314 . Wheels . | . . . Hover . | . . . Flight . | . . . Fastest Speed 50 | 50 120 160 Average Speed 148 | 126 136 173 Slowest Speed 480 | 250 190 480 Overloaded Moves . | . . . Propulsion Burnouts . | . . . Robots Hopped . | . . . Cave-ins Triggered . | . . . Exploration Rate (%) 25 | 5 62 10 Regions Visited 2 Branch Regions . Pre-discovered Areas . | . . . Known Exits Taken . | . . . Unknown Exits Taken 2 | 1 1 . Scrap Searched . | . . . Spaces Dug . | . . . Terrain Destroyed 256 | . 151 105 Melee . | . . . Projectile . | . . . AOE 256 | . 151 105 Terrain Rammed . | . . . Walls Destroyed . | . . . Machines Disabled . | . . . Actions | -11 -10 -9 --------- Run | Yrd Mat Mat Total 942 | 56 573 313 Wait 111 | . 65 46 Move 742 | 42 453 247 Hop . | . . . Pick Up 25 | 8 15 2 Fast Attach 1 | 1 . . Attach 16 | 5 7 4 Detach . | . . . Swap 12 | . 6 6 Drop 9 | . 8 1 Fire 26 | . 19 7 Melee . | . . . Ram . | . . . Kick . | . . . Crush . | . . . Escape Stasis . | . . . Rewire . | . . . Trap . | . . . Miscellaneous . | . . . Route ------- -11/Scrapyard -10/Materials (discovered 2 exits: *Mat x2) -9/Materials History --------- Turn | Location | Event 2 | -11/Scrapyard | Met Revision 17 6 | -11/Scrapyard | Discovered new exit (range 15) 69 | -11/Scrapyard | Entered Materials 278 | -10/Materials | Discovered new exit (range 16) 301 | -10/Materials | Core integrity fell below 50% 380 | -10/Materials | Build established: Mutant 646 | -10/Materials | Discovered new exit (range 10) 845 | -10/Materials | Entered another Materials area 845 | -9/Materials | Evolved 2 slots: Propulsion x2 1278 | -9/Materials | Core integrity fell below 50% 1315 | -9/Materials | Lost 3 parts (1p2n) 1338 | -9/Materials | Core integrity fell below 20% 1352 | -9/Materials | Destroyed by Y-45 Defender with Heavy Assault Rifle Last Messages --------------- Backup Plating I tumbles out of repair station. The unstable cave ceiling collapses. U-05 Engineer builds a Wall. U-05 Engineer lays Concrete. U-05 Engineer builds a Door. U-05 Engineer lays Concrete. Critical hit (Burn: +37). Imp. Treads destroyed. The unstable cave ceiling collapses. Imp. Treads destroyed. Critical hit (Burn: +37). Ion Engine destroyed. Processing Tank disabled. Imp. Treads destroyed. Critical hit (Burn: +37). Imp. Treads destroyed. Mni. Grenade Launcher destroyed. Critical hit (Burn: +37). G-47 Trooper destroyed. The unstable cave ceiling collapses. Map ----- +----------------------------------------------------+ | | | | | | | | | | | | | | | | | | | | | ?????#########???????????????????????????????????? | | ????## # # ####????????????????????????????????? | | ????# ##########?????????????????????????????? | | ##### ##### #?????????????????????????????? | | + + #?????????????????????????????? | | ! ##### ########??????????????????????? | | = # # #??????????????????????? | | # # #??????????????????????? | | ### # """"" # """ #??????????????????????? | | #?### """" # """ #??????????????????????? | | ##### """"" # """ #??????????????????????? | | # # # #??????????????????????? | | #+#############+#### # ###########?????????????? | | Y ??????? | | g #######?????????????? | | %= @ ##??????????????????? | | ###############+###= # ## #??????????????????? | | ######### #?# #??????????????????? | | ??????### #?# """! ##??????????????????? | | ????????# #?# "R ##??????????????????? | | ????????# """ #?# " " # #?????????????????? | | ????????# """"" #?# # #?????????????????? | | ????????# """"" #?# [ ] #?????????????????? | | ????????# """"" #?# [*] # #?????????????????? | | ????????# """ #?# []] # #?????????????????? | | ????????###########?# ###?????????????????? | | ?????????????????????+######## ??????????????????? | | ??????????????????????????# ##?????????????????? | | ???????????????????????????####??????????????????? | | ?????????????????????????????????????????????????? | | ?????????????????????????????????????????????????? | | ?????????????????????????????????????????????????? | | ?????????????????????????????????????????????????? | | ?????????????????????????????????????????????????? | | ?????????????????????????????????????????????????? | | ?????????????????????????????????????????????????? | | ?????????????????????????????????????????????????? | | ?????????????????????????????????????????????????? | | ?????????????????????????????????????????????????? | | ?????????????????????????????????????????????????? | +----------------------------------------------------+ Best States ------------- Heat Dissipation 28 Energy Generation 10 Energy Capacity 250 Matter Stores 295 Matter Capacity 300 Sight Range 16 Terrain Scan Density 10 ECM Strength 1 Evasion (%) 55 Targeting Accuracy 6 Recoil Reduction 4 Item Schematics ----------------- None Robot Schematics ------------------ None Fabricated ------------ Nothing Alien Tech Used ----------------- None Achievements -------------- None Challenges ------------ None Game ------ Seed SwordFluxPit Manual? 0 Play Time 00:10:20 Cumulative 12.6 hours Start 2024.04.09 @ 16:48:32 End 2024.04.09 @ 16:58:45 Sessions 1 Manual Loads 0 Difficulty Rogue Special Mode None Game No. 32 Rogue 30 Adventurer 2 Explorer 0 Win Type - Total 0 Types 0/0/0/0/0/0/0/0/0 Lore% 8 Gallery% 22 Achievement% 16 Wizard Run 0 Options --------- Layout 1 ASCII 0 Keyboard 0 Movement Mouse Keybinds 0 Fullscreen 1 Font 16/SmallcapsGlow Map View 27x19 Zoom Use 100% Tactical HUD 0 Map Filters NONE Filters NONE Steam 1 RUN: ff4bf047-3ee3-4a23-b8c6-e2539ecd59bc